{"text_format":"2","workbook":"xlsx","n_sheets":5,"sheets":["Project Information","Rental Operating Proforma","MIH Application","KHITC Application","RLF Application"],"not_rendered":{"charts":0,"images":6,"macros":0,"external_links":0,"defined_names":4,"comments":0,"pivot_tables":0},"unopened":[],"bounds":{"document_bytes":16777216,"sheet_cells":100000,"run_cost":"one","rows_first":2000,"rows_last":500,"rows_between":2000,"halvings":0,"cell_chars":16384,"cell_head_chars":4096},"cells_cut":0,"cells_raw":0,"read":"whole","date_system":"1900"}

{"sheet":"Project Information","index":0,"n_rows":537,"n_cols":16,"rows_kept":537,"cut":false,"hidden":false,"merged":[[289,0,289,3],[425,9,426,10],[427,5,427,6],[428,5,428,6],[429,5,429,6],[427,20,427,22],[427,17,427,19],[427,14,427,15],[427,9,427,10],[426,14,426,15],[426,17,426,19],[426,20,426,22],[425,13,425,27],[428,22,428,24],[429,13,429,14],[425,0,426,0],[427,7,427,8],[428,7,428,8],[429,7,429,8],[425,1,426,2],[425,3,426,4],[425,5,426,6],[425,7,426,8],[332,0,332,6],[104,4,104,6],[59,12,60,26],[61,4,61,7],[62,0,62,4],[62,5,62,8],[108,1,108,3],[108,4,108,6],[109,1,109,3],[109,4,109,6],[75,5,75,9],[76,5,76,9],[77,5,77,9],[76,0,76,4],[77,0,77,4],[75,0,75,4],[85,5,85,9],[88,5,88,9],[89,5,89,9],[90,5,90,9],[91,5,91,9],[92,5,92,9],[93,5,93,9],[88,0,88,4],[89,0,89,4],[25,12,25,14],[25,15,25,26],[28,6,28,8],[28,12,28,26],[28,9,28,10],[96,0,96,10],[98,12,100,26],[103,1,103,3],[103,4,103,6],[61,0,61,3],[68,5,68,9],[69,5,69,9],[70,5,70,9],[71,5,71,9],[72,5,72,9],[68,0,68,4],[69,0,69,4],[70,0,70,4],[71,0,71,4],[66,0,66,4],[66,5,66,9],[67,0,67,9],[72,0,72,4],[74,0,74,9],[266,12,268,26],[78,0,78,4],[79,0,79,4],[80,0,80,4],[81,0,81,4],[82,0,82,4],[83,0,83,4],[84,0,84,4],[94,5,94,9],[94,0,94,4],[104,1,104,3],[85,0,85,4],[78,5,78,9],[79,5,79,9],[80,5,80,9],[81,5,81,9],[82,5,82,9],[83,5,83,9],[84,5,84,9],[91,0,91,4],[90,0,90,4],[92,0,92,4],[93,0,93,4],[87,0,87,9],[33,0,33,4],[33,5,33,10],[34,1,34,2],[34,3,34,4],[34,5,34,6],[35,14,35,26],[36,0,36,2],[36,3,36,4],[36,5,36,7],[36,8,36,9],[37,0,37,2],[37,3,37,4],[37,5,37,6],[37,7,37,10],[0,0,6,10],[7,0,13,10],[15,0,15,10],[17,0,17,10],[17,12,18,26],[19,0,20,10],[30,0,30,10],[32,0,32,4],[32,5,32,10],[24,0,24,6],[24,12,24,26],[26,0,26,10],[35,1,35,2],[35,3,35,4],[35,5,35,6],[35,7,35,8],[35,9,35,10],[35,12,35,13],[28,0,28,1],[28,3,28,4],[46,2,46,4],[46,5,46,7],[47,2,47,4],[47,5,47,7],[48,2,48,4],[48,5,48,7],[39,0,39,10],[40,0,42,10],[44,2,44,4],[44,5,44,7],[45,2,45,4],[45,5,45,7],[54,1,54,3],[54,4,54,6],[54,7,54,9],[55,1,55,3],[55,4,55,6],[55,7,55,9],[49,2,49,4],[49,5,49,7],[51,0,51,10],[53,1,53,3],[53,4,53,6],[53,7,53,9],[58,1,58,3],[58,4,58,6],[58,7,58,9],[59,1,59,3],[59,4,59,6],[59,7,59,9],[56,1,56,3],[56,4,56,6],[56,7,56,9],[57,1,57,3],[57,4,57,6],[57,7,57,9],[110,1,110,3],[110,4,110,6],[105,1,105,3],[105,4,105,6],[106,1,106,3],[106,4,106,6],[107,1,107,3],[107,4,107,6],[120,0,120,10],[111,1,111,3],[111,4,111,6],[112,1,112,3],[112,4,112,6],[114,0,114,7],[116,0,118,10],[126,0,126,1],[126,2,126,5],[127,0,127,1],[127,2,127,6],[126,8,126,10],[128,0,128,1],[128,6,128,7],[128,8,128,10],[121,0,121,10],[124,0,124,10],[125,0,125,1],[125,6,125,7],[125,8,125,10],[122,0,123,10],[131,0,131,1],[131,6,131,7],[131,8,131,10],[132,0,132,1],[132,2,132,5],[133,0,133,1],[133,2,133,6],[133,8,133,10],[129,0,129,1],[129,2,129,5],[129,8,129,10],[130,0,130,1],[130,2,130,5],[130,8,130,10],[132,8,132,10],[136,0,136,1],[136,2,136,10],[137,0,137,1],[137,6,137,7],[137,8,137,10],[138,0,138,1],[138,2,138,5],[138,8,138,10],[134,0,134,1],[134,6,134,7],[134,8,134,10],[135,0,135,1],[135,2,135,5],[135,8,135,10],[137,2,137,5],[134,2,134,5],[142,0,142,1],[142,2,142,10],[143,0,143,1],[143,6,143,7],[143,8,143,10],[144,0,144,1],[144,2,144,5],[144,8,144,10],[139,0,139,1],[139,2,139,10],[140,0,140,1],[140,6,140,7],[140,8,140,10],[141,0,141,1],[141,2,141,5],[141,8,141,10],[140,2,140,5],[143,2,143,5],[148,0,148,1],[148,2,148,10],[149,0,149,1],[149,6,149,7],[149,8,149,10],[150,0,150,1],[150,2,150,5],[150,8,150,10],[145,0,145,1],[145,2,145,10],[146,0,146,1],[146,6,146,7],[146,8,146,10],[147,0,147,1],[147,2,147,5],[147,8,147,10],[146,2,146,5],[149,2,149,5],[154,0,154,1],[154,2,154,10],[155,0,155,1],[155,6,155,7],[155,8,155,10],[156,0,156,1],[156,2,156,5],[156,8,156,10],[151,0,151,1],[151,2,151,10],[152,0,152,1],[152,6,152,7],[152,8,152,10],[153,0,153,1],[153,2,153,5],[153,8,153,10],[152,2,152,5],[155,2,155,5],[157,0,157,1],[157,2,157,10],[159,4,159,6],[159,7,159,9],[161,0,164,10],[165,0,167,10],[169,0,170,10],[171,0,171,10],[172,0,173,1],[172,2,173,3],[172,4,173,5],[172,6,173,7],[172,8,173,9],[172,10,173,10],[174,0,174,1],[174,2,174,3],[174,4,174,5],[174,6,174,7],[174,8,174,9],[175,0,175,1],[175,2,175,3],[175,4,175,5],[175,6,175,7],[175,8,175,9],[176,0,176,1],[176,2,176,3],[176,4,176,5],[176,6,176,7],[176,8,176,9],[177,0,177,1],[177,2,177,3],[177,4,177,5],[177,6,177,7],[177,8,177,9],[180,0,180,1],[180,2,180,3],[180,4,180,5],[180,6,180,7],[180,8,180,9],[182,0,182,2],[182,3,182,4],[178,0,178,1],[178,2,178,3],[178,4,178,5],[178,6,178,7],[178,8,178,9],[179,0,179,1],[179,2,179,3],[179,4,179,5],[179,6,179,7],[179,8,179,9],[186,0,186,10],[188,0,188,10],[189,0,189,1],[189,2,189,3],[190,0,190,2],[190,3,190,4],[183,0,183,2],[183,3,183,4],[183,5,183,10],[184,0,184,2],[184,3,184,4],[184,5,184,10],[203,0,203,2],[203,3,203,4],[204,0,204,2],[204,3,204,4],[206,0,206,10],[207,0,212,10],[191,0,191,2],[191,3,191,4],[193,0,193,10],[194,0,199,10],[201,0,201,10],[202,0,202,1],[202,2,202,3],[217,0,217,2],[217,3,217,4],[219,0,219,10],[220,0,225,10],[227,0,227,10],[228,0,228,1],[228,2,228,3],[214,0,214,10],[214,12,215,26],[215,0,215,1],[215,2,215,3],[216,0,216,2],[216,3,216,4],[240,0,240,10],[241,0,241,1],[241,2,241,3],[242,0,242,2],[242,3,242,4],[243,0,243,2],[243,3,243,4],[229,0,229,2],[229,3,229,4],[230,0,230,2],[230,3,230,4],[232,0,232,10],[233,0,238,10],[255,1,255,4],[255,5,255,7],[255,8,255,10],[255,12,255,26],[257,0,257,10],[258,0,258,10],[245,0,245,10],[246,0,251,10],[253,0,253,10],[254,1,254,5],[254,6,254,7],[254,8,254,10],[261,1,261,3],[261,5,261,6],[261,7,261,9],[263,0,263,10],[264,0,264,10],[265,0,265,10],[259,1,259,3],[259,5,259,6],[259,7,259,9],[260,1,260,3],[260,5,260,6],[260,7,260,9],[270,2,270,6],[270,8,270,10],[271,2,271,10],[272,2,272,6],[272,8,272,10],[273,2,273,10],[266,0,266,10],[267,2,267,10],[268,2,268,6],[268,8,268,10],[269,0,269,1],[269,2,269,10],[280,2,280,6],[280,8,280,10],[281,2,281,10],[274,2,274,6],[274,8,274,10],[275,2,275,10],[276,2,276,6],[276,8,276,10],[277,2,277,10],[278,2,278,6],[278,8,278,10],[279,2,279,10],[333,0,333,4],[335,0,335,1],[335,2,335,6],[337,0,337,5],[338,0,340,10],[323,0,323,10],[324,0,330,10],[309,0,309,1],[309,2,309,4],[309,6,309,7],[309,8,309,10],[311,0,311,1],[311,2,311,4],[311,6,311,7],[311,8,311,10],[321,6,321,7],[321,8,321,10],[321,2,321,4],[320,0,320,1],[320,2,320,4],[320,6,320,7],[320,8,320,10],[321,0,321,1],[347,0,347,2],[347,5,347,6],[348,1,348,2],[348,5,348,6],[349,1,349,2],[349,4,349,6],[342,0,342,10],[343,0,343,1],[344,0,344,10],[345,0,345,10],[346,0,346,2],[346,4,346,6],[346,8,346,9],[353,0,353,10],[355,0,355,10],[357,0,357,1],[357,3,357,5],[357,6,357,7],[357,8,357,10],[349,7,349,10],[351,0,351,10],[352,0,352,10],[360,0,360,1],[360,3,360,5],[360,6,360,7],[360,8,360,10],[361,0,361,1],[361,3,361,5],[361,6,361,7],[361,8,361,10],[358,0,358,1],[358,3,358,5],[358,6,358,7],[358,8,358,10],[359,0,359,1],[359,3,359,5],[359,6,359,7],[359,8,359,10],[365,0,365,3],[365,4,365,5],[366,0,366,3],[366,4,366,5],[367,0,367,3],[371,0,371,3],[371,4,371,5],[368,0,369,10],[362,0,362,1],[362,3,362,5],[362,6,362,7],[362,8,362,10],[364,0,364,3],[364,4,364,5],[376,0,376,3],[376,4,376,5],[378,0,378,10],[388,6,388,7],[388,0,388,5],[372,0,372,3],[372,4,372,5],[373,0,373,3],[373,4,373,5],[374,0,374,3],[374,4,374,5],[380,0,380,7],[381,0,381,5],[381,6,381,7],[382,0,382,5],[382,6,382,7],[383,0,383,5],[383,6,383,7],[384,0,384,5],[384,6,384,7],[385,0,385,5],[385,6,385,7],[386,0,386,5],[386,6,386,7],[431,1,431,2],[431,3,431,4],[427,3,427,4],[409,0,409,5],[409,6,409,7],[410,0,410,5],[410,6,410,7],[411,0,411,5],[411,6,411,7],[430,5,430,6],[431,5,431,6],[431,7,431,8],[430,7,430,8],[417,0,419,10],[421,0,421,10],[422,0,422,10],[423,0,423,10],[428,3,428,4],[429,3,429,4],[430,3,430,4],[427,1,427,2],[428,1,428,2],[429,1,429,2],[430,1,430,2],[433,0,433,10],[434,0,434,10],[437,5,437,7],[438,5,438,7],[439,5,439,7],[438,8,438,10],[439,8,439,10],[437,8,437,10],[435,0,435,10],[437,0,437,4],[438,0,438,4],[439,0,439,4],[450,8,450,10],[449,8,449,10],[442,0,442,4],[442,12,443,26],[443,0,443,4],[444,0,444,4],[440,0,440,4],[441,0,441,4],[440,5,440,7],[441,5,441,7],[442,5,442,7],[443,5,443,7],[444,5,444,7],[443,8,443,10],[442,8,442,10],[440,8,440,10],[441,8,441,10],[449,0,449,4],[450,0,450,4],[445,8,445,10],[446,8,446,10],[447,8,447,10],[448,8,448,10],[444,8,444,10],[451,0,451,4],[445,0,445,4],[446,0,446,4],[448,0,448,4],[445,5,445,7],[446,5,446,7],[447,5,447,7],[448,5,448,7],[450,5,450,7],[449,5,449,7],[451,5,451,7],[452,0,452,4],[453,0,453,4],[454,0,454,4],[452,5,452,7],[453,5,453,7],[454,5,454,7],[455,5,455,7],[456,5,456,7],[457,5,457,7],[460,8,460,10],[459,8,459,10],[463,8,463,10],[458,8,458,10],[461,8,461,10],[462,8,462,10],[455,0,455,4],[456,0,456,4],[457,0,457,4],[455,8,455,10],[456,8,456,10],[457,8,457,10],[458,0,458,4],[459,0,459,4],[460,0,460,4],[458,5,458,7],[459,5,459,7],[460,5,460,7],[461,5,461,7],[462,5,462,7],[463,5,463,7],[461,0,461,4],[462,0,462,4],[463,0,463,4],[466,0,466,4],[467,0,467,4],[468,0,468,4],[464,0,464,4],[465,0,465,4],[472,8,472,10],[471,8,471,10],[469,8,469,10],[470,8,470,10],[473,8,473,10],[474,8,474,10],[475,0,475,4],[464,8,464,10],[465,8,465,10],[466,8,466,10],[467,8,467,10],[468,8,468,10],[464,5,464,7],[465,5,465,7],[466,5,466,7],[467,5,467,7],[468,5,468,7],[472,0,472,4],[473,0,473,4],[474,0,474,4],[469,0,469,4],[470,0,470,4],[471,0,471,4],[469,5,469,7],[470,5,470,7],[471,5,471,7],[472,5,472,7],[473,5,473,7],[474,5,474,7],[476,0,476,4],[475,5,475,7],[476,5,476,7],[477,5,477,7],[478,5,478,7],[479,5,479,7],[475,8,475,10],[476,8,476,10],[477,8,477,10],[477,0,477,4],[478,0,478,4],[479,0,479,4],[479,8,479,10],[478,8,478,10],[481,0,481,4],[482,0,482,4],[480,0,480,4],[480,5,480,7],[481,5,481,7],[482,5,482,7],[494,8,494,10],[495,8,495,10],[494,0,494,4],[495,0,495,4],[489,5,489,7],[488,8,488,10],[486,8,486,10],[480,8,480,10],[481,8,481,10],[482,8,482,10],[494,5,494,7],[495,5,495,7],[493,8,493,10],[492,8,492,10],[488,0,488,4],[489,0,489,4],[489,8,489,10],[490,8,490,10],[507,2,507,4],[507,5,507,6],[507,8,507,9],[496,0,496,4],[497,0,497,4],[498,0,498,4],[496,5,496,7],[498,5,498,7],[497,8,497,10],[496,8,496,10],[498,8,498,10],[500,0,500,10],[527,0,532,10],[534,0,534,10],[536,0,541,10],[424,13,424,14],[424,16,424,18],[515,0,515,10],[516,0,521,10],[523,0,523,2],[523,4,523,8],[523,9,523,10],[523,12,523,26],[512,0,512,1],[512,2,512,4],[512,5,512,6],[512,8,512,9],[513,0,513,1],[513,2,513,4],[513,5,513,6],[513,8,513,9],[510,0,510,1],[510,2,510,4],[424,22,424,24],[424,19,424,21],[502,0,504,10],[525,0,526,10],[510,5,510,6],[510,8,510,9],[511,0,511,1],[511,2,511,4],[511,5,511,6],[511,8,511,9],[508,0,508,1],[508,2,508,4],[508,5,508,6],[508,8,508,9],[509,0,509,1],[509,2,509,4],[509,5,509,6],[509,8,509,9],[491,8,491,10],[506,0,506,2],[507,0,507,1],[182,13,182,27],[317,0,317,1],[317,2,317,4],[317,6,317,7],[317,8,317,10],[318,0,318,1],[318,2,318,4],[318,6,318,7],[318,8,318,10],[288,7,288,8],[291,0,291,10],[282,2,282,6],[282,8,282,10],[283,2,283,10],[284,2,284,6],[284,8,284,10],[286,0,286,10],[306,0,306,1],[306,2,306,4],[306,6,306,7],[306,8,306,10],[432,12,432,13],[432,15,432,17],[432,18,432,20],[428,9,428,10],[429,9,429,10],[430,9,430,10],[431,9,431,10],[428,13,428,14],[428,16,428,18],[428,19,428,21],[429,16,429,18],[429,19,429,21],[430,13,430,14],[430,16,430,18],[430,19,430,21],[451,8,451,10],[452,8,452,10],[453,8,453,10],[454,8,454,10],[493,0,493,4],[490,0,490,4],[491,0,491,4],[492,0,492,4],[490,5,490,7],[491,5,491,7],[492,5,492,7],[493,5,493,7],[487,0,487,4],[483,0,483,4],[486,0,486,4],[483,5,483,7],[484,5,484,7],[485,5,485,7],[486,5,486,7],[487,5,487,7],[487,8,487,10],[483,8,483,10],[484,8,484,10],[485,8,485,10],[64,0,64,10],[98,0,101,10],[314,0,314,1],[314,2,314,4],[314,6,314,7],[314,8,314,10],[315,0,315,1],[315,2,315,4],[315,6,315,7],[315,8,315,10],[312,0,312,1],[312,2,312,4],[312,6,312,7],[312,8,312,10],[308,0,308,1],[308,2,308,4],[308,6,308,7],[308,8,308,10],[292,0,301,10],[303,0,303,9],[305,0,305,1],[305,2,305,4],[305,6,305,7],[305,8,305,10],[387,0,387,5],[387,6,387,7],[389,0,389,5],[389,6,389,7],[390,0,390,5],[390,6,390,7],[392,0,392,7],[401,6,401,7],[403,0,403,7],[393,0,393,5],[393,6,393,7],[394,0,394,5],[394,6,394,7],[395,0,395,5],[395,6,395,7],[396,0,396,5],[396,6,396,7],[397,0,397,5],[397,6,397,7],[413,0,413,5],[413,6,413,7],[414,0,414,5],[414,6,414,7],[415,0,415,5],[415,6,415,7],[380,12,381,26],[404,0,404,5],[404,6,404,7],[405,0,405,5],[405,6,405,7],[406,0,406,5],[406,6,406,7],[407,0,407,5],[407,6,407,7],[408,0,408,5],[408,6,408,7],[398,0,398,5],[398,6,398,7],[399,0,399,5],[399,6,399,7],[400,0,400,5],[400,6,400,7],[401,0,401,5]]}
[{"$error":"#VALUE!"}]
[]
[]
[]
[]
[]
[]
["Instructions for 2025 Round 1 All Applications: To better facilitate evaluation, KHRC requires that MIH and KHITC applications and any required attachments be submitted via electronic upload via the online platform Procorem.\n\nPlease complete this application in Excel and save as \"25-01-NameofApplicant-Application.xlsx\" Example: Anytown, KS would name the application \"25-01-Anytown-Application.xlsx\". Accompanying documents must be uploaded electronically as PDF documents. If the applicant has difficultly or cannot upload the application electronically, please email MIH@kshousingcorp.org."]
{"$rows_empty":7}
["I. Application Overview:"]
[]
["Type of Request (select all that apply)",{"$nulls":11},"Application Tip - Section I:  MIH applicants may submit their proposal with a corresponding KHITC application. KHITC applicants must submit their proposal with a corresponding MIH application. "]
[]
["IMPORTANT: MIH applications may be submitted as MIH-only or combined with a KHITC application. KHITC applications may be submitted as KHITC-only or combined with an MIH application."]
[]
[]
[null,null,null,"MIH:",null,null,"KHITC:"]
[]
["Subject to approval, does the applicant plan on applying for RLF funds?",{"$nulls":11},"Application Tip - Section I: RLF applications are currently open and accepted on a rolling basis. To submit a RLF application, please see the respective RLF "]
[{"$nulls":12},"NORA and application here:",null,null,"https://kshousingcorp.org/housing-partners/mih/#rlf-resources"]
["Application Type"]
[]
["New Application:",null,null,"Resubmission:",null,null,"Resubmission Round:",{"$nulls":5},"Application Tip - Section I:  If applicable, in Cell JK29, enter the year and round in which the applicant previously applied."]
[]
["Site Information"]
[]
["Project Name (should match Notice of Application):"]
["Street Address (or other detail to identify location):"]
["City:",null,null,"City Population:",null,null,null,"State: ","KS","Zip:"]
["County:",null,null,"County Population:",null,null,null,"Census Tract: ",{"$nulls":4},"Online Search",null,"Enter \"GEOID\" from  \"Census Tracts\" at the bottom of the search results page:"]
["Kansas Senate District:",{"$nulls":4},"Kansas House District:"]
["Federal Congressional District:",{"$nulls":4},"Legal Address:"]
[]
["II. Type of Development:"]
["Provide the total number of units for each type of unit below. KHRC recognizes that some units may fall under more than one of the descriptors below and that this may cause some units to be counted twice. However, the total units in development (Cell FH45) should not contain duplicate information. "]
[]
[]
[]
[null,null,"Unit Type",null,null,"Number of Units"]
[null,null,"Total Units in Development"]
[null,null,"Market Rate Units"]
[null,null,"MIH Units"]
[null,null,"KHITC Units"]
[null,null,"RLF Units"]
[]
["What is the type of the development? Indicate the number of units of each. "]
[]
[null,"Development Type",null,null,"Number of Units",null,null,"Number of Buildings"]
[null,"Multi-Family Rental "]
[null,"Single Family Rental"]
[null,"Homeownership "]
[null,"Infrastructure"]
[null,"Duplexes"]
[null,"Other (specify)",{"$nulls":10},"Application Tip - Section II: In the Development Type column, the cell labeled \"Other (specify)\" can be edited to describe the development type. Please delete the existing content in the cell and enter the correct development type description. "]
[]
["Anticipated start date for construction:"]
["Anticipated completion date of the development:"]
[]
["III. Projected Timeline"]
[]
["Activity",{"$nulls":4},"Scheduled Date"]
["Site"]
["Option/Contract"]
["Environmental Clearance"]
["Site Acquisition"]
["Zoning Approval"]
["Site Engineering"]
[]
["Financing"]
["Construction Loan Closing"]
["Permanent Loan Closing"]
["Tax Credit Equity - Preliminary Commitment"]
["Other Loans & Grants"]
["     Type & Source"]
["     Application"]
["     Award"]
["Other Loans & Grants"]
["     Type & Source"]
["     Application"]
["     Award"]
[]
["Other"]
["Acquisition Date"]
["Plans and Specifications"]
["Building Permits Received"]
["Construction Begins"]
["Completion of Construction"]
["Lease-up or Unit Sale"]
["Project Completed"]
[]
["IV. Funding Information:"]
[]
["How will KHRC's resources be used? Please select all that apply and indicate the $ amount of each, but ONLY select the items that KHRC's resources will be applied towards. Infrastructure (as defined in the NORA) is not an eligible expense for an MIH grant. However, infrastructure that is combined with housing development may be considered an eligible cost.",{"$nulls":11},"Application Tip - Section IV: One common error in the Funding Information application section is that applicants include all items that will be part of the project. This is incorrect. Applicants should only include items that KHRC resources will fund and the total listed in Section III should equal the total request across all KHRC resources being requested (MIH, KHITC, and/or RLF). "]
[]
[]
[]
[]
[null,"Cost",null,null,"Amount",null,null,"MIH","KHITC","RLF"]
[null,"Building-Specific Site Costs",null,null,0]
[null,"Down Payment Assistance",null,null,0]
[null,"Historic Rehabilitation",null,null,0]
[null,"Conversion From Another Use",null,null,0]
[null,"*Infrastructure/Site Work",null,null,0]
[null,"New Construction",null,null,0]
[null,"Acquisition + Rehab",null,null,0]
[null,"Rehabilitation",null,null,0]
[null,"Other (describe)",null,null,0]
[]
["If project is a rehabilitation or conversion of existing buildings, year constructed:"]
[]
["*Stand alone infrastructure is generally not an eligible cost under the MIH program. If applicants need infrastructure for their proposed project, funds for infrastructure costs should be requested with other costs that eventually bring housing units online."]
[]
[]
[]
["V. Source of Funds (Construction & Permanent):"]
[]
["List each source of funds for construction and permanent financing, including grants, loans, equity, and other contributions."]
[]
["Please attach proof of funding source with the application."]
["Source of Funds:",null,"Moderate Income Housing Grant",null,null,null,"Amount of Funds:",null,0]
["Contact Name:",null,"Kansas Housing Resources Corporation",{"$nulls":4},"Phone:","785-217-2001"]
["Email:",null,"MIH@kshousingcorp.org"]
["Source of Funds:",null,"Kansas Housing Investor Tax Credit",null,null,null,"Tax Credit Equity:",null,{"$f":"SUM('KHITC Application'!H53:I53)","v":0}]
["Contact Name:",null,"Kansas Housing Resources Corporation",{"$nulls":5},"Prefilled from KHITC tab."]
["Email:",null,"MIH@kshousingcorp.org ",{"$nulls":4},"Phone:","785-217-2001"]
["Source of Funds:",null,"Revolving Loan Fund",null,null,null,"Amount of Funds:",null,0]
["Contact Name:",null,"Kansas Housing Resources Corporation",{"$nulls":4},"Phone:","785-217-2001"]
["Email:",null,"MIH@kshousingcorp.org"]
["Source of Funds:",{"$nulls":5},"Amount of Funds:",null,0]
["Contact Name:",{"$nulls":6},"Phone:"]
["Email:"]
["Source of Funds:",{"$nulls":5},"Amount of Funds:",null,0]
["Contact Name:",{"$nulls":6},"Phone:"]
["Email:"]
["Source of Funds:",{"$nulls":5},"Amount of Funds:",null,0]
["Contact Name:",{"$nulls":6},"Phone:"]
["Email:"]
["Source of Funds:",{"$nulls":5},"Amount of Funds:",null,0]
["Contact Name:",{"$nulls":6},"Phone:"]
["Email:"]
["Source of Funds:",{"$nulls":5},"Amount of Funds:",null,0]
["Contact Name:",{"$nulls":6},"Phone:"]
["Email:"]
["Source of Funds:",{"$nulls":5},"Amount of Funds:",null,0]
["Contact Name:",{"$nulls":6},"Phone:"]
["Email:"]
["Source of Funds:",{"$nulls":5},"Amount of Funds:",null,0]
["Contact Name:",{"$nulls":6},"Phone:"]
["Email:"]
["Source of Funds:",{"$nulls":5},"Amount of Funds:",null,0]
["Contact Name:",{"$nulls":6},"Phone:"]
["Email:"]
[]
["Total Sources of Funds:",null,null,null,{"$f":"SUM(I126,I129,I132,I135,I138,I141,I144,I150,I153,I147,I156)","v":0},null,null,"Prefilled from above."]
[]
["In the box below, detail other items used to leverage the proposal.  This could include sources such as in-kind labor and services, reduced fees and taxes, and city contributed work.  KHRC recognizes that calculating leveraged funds is complicated and nuanced.  KHRC will consider the sources listed below, but outside of the leveraged funds calculation."]
{"$rows_empty":7}
["Permanent Financing: List total source of permanent funds for the development at completion. Do not include construction finance."]
[]
["Please attach proof of funding source with the application."]
["Name of Lender or Source of Funds",null,"Amount of Funds",null,"Annual Debt Service",null,"Interest Rate of Loan Period",null,"Amortization Period",null,"Term of Loan"]
[]
["MIH Grant",null,{"$f":"SUM(I126)","v":0},null,0]
["RLF",null,{"$f":"SUM(I132)","v":0},null,0,null,0]
["KHITC Equity",null,{"$f":"SUM('KHITC Application'!H53:I53)","v":0},null,0]
[null,null,0,null,0]
[null,null,0,null,0]
[null,null,0,null,0]
[null,null,0,null,0]
[]
["Total Permanent Funds:",null,null,{"$f":"SUM(C175:D181)","v":0},{"$nulls":9},"Application Tip - Section V: The total permanent funds must equal the total development costs. "]
["Total Development Costs:",null,null,{"$f":"F499","v":0},null,"Prefilled from Section XII."]
["Total Annual Debt Service:",null,null,{"$f":"SUM(E175:F181)","v":0},null,"Prefilled from above."]
[]
["VI. Other Grants and Resources:"]
[]
["Reinvestment Housing Incentive District (RHID)"]
["Total Award:",null,0]
["Frequency of Payments:"]
["Amount per Payment:",null,null,0]
[]
["Use of Funds"]
{"$rows_empty":7}
["Historic Preservation Credit"]
["Total Award:",null,0]
["Frequency of Payments:"]
["Amount per Payment:",null,null,0]
[]
["Use of Funds"]
{"$rows_empty":7}
["Resource (describe)",{"$nulls":11},"Application Tip - Section VI: For any section the applicant fills out, the applicant should delete \"Resource (describe)\" above the section and replace it with the resource being described. "]
["Total Award:",null,0]
["Frequency of Payments:"]
["Amount per Payment:",null,null,0]
[]
["Use of Funds"]
{"$rows_empty":7}
["Resource (describe)"]
["Total Award:",null,0]
["Frequency of Payments:"]
["Amount per Payment:",null,null,0]
[]
["Use of Funds"]
{"$rows_empty":7}
["Resource (describe)"]
["Total Award:",null,0]
["Frequency of Payments:"]
["Amount per Payment:",null,null,0]
[]
["Use of Funds"]
{"$rows_empty":7}
["VII. Developer Partnership Information"]
[]
["Name:",{"$nulls":4},"Federal EIN Number:",{"$nulls":6},"Application Tip - Section VII: A Federal Employer ID (EIN) is also known as a Taxpayer Identification Number (TIN)."]
[]
["General Partner/Managing Member/or Principal(s) Involved:"]
["Identify the ownership structure, as applicable, for both homeownership and rental projects."]
["Name:",null,null,null,"Phone:",null,null,"Ownership Percentage:"]
["Name:",null,null,null,"Phone:",null,null,"Ownership Percentage:"]
["Name:",null,null,null,"Phone:",null,null,"Ownership Percentage:"]
[]
["VIII. Development Team Information"]
[]
["Development Team"]
["Provide the following information if applicable and attach a resume for each team member listed. ",{"$nulls":11},"Application Tip - Section VIII: A common error in this section of the application is that applicants do not include resumes/prospectuses/biographies for each team member listed in this section of the application. Any team member listed in the “Development Team Information” section of the Excel application should have a corresponding resume/prospectus/biography according to the requirements in the NORA."]
[null,"Developer:"]
[null,"Email:",{"$nulls":5},"Phone:"]
["Principal/Owner:"]
[null,"Email:",{"$nulls":5},"Phone:"]
[null,"Builder/Contractor:"]
[null,"Email:",{"$nulls":5},"Phone:"]
[null,"Mgmt. Company:"]
[null,"Email:",{"$nulls":5},"Phone:"]
[null,"Consultant:"]
[null,"Email:",{"$nulls":5},"Phone:"]
[null,"Architect:"]
[null,"Email:",{"$nulls":5},"Phone:"]
[null,"Site Planner:"]
[null,"Email:",{"$nulls":5},"Phone:"]
[null,"Property Manager:"]
[null,"Email:",{"$nulls":5},"Phone:"]
[null,"Engineer:"]
[null,"Email:",{"$nulls":5},"Phone:"]
[]
["Financial History"]
["Has any related entity or member of the development team, either currently or in the past, been involved in any "]
["litigation, legal action, lawsuit, foreclosure, or bankruptcy proceeding?"]
["If yes, attach a detailed explanation."]
[]
["Funding History"]
["Applicants should report award and loan history on the following KHRC programs:\n\n• Housing Trust Fund (HTF)\n• Moderate Income Housing (MIH)\n• Low Income Housing Tax Credit (LIHTC)\n• HOME Investment Partnerships (HOME)\t\n• Kansas Housing Investor Tax Credit (KHITC)\n• Moderate Income Housing-American Rescue Plan Act (MIH-ARPA)\n• Revolving Loan Fund (RLF)"]
{"$rows_empty":10}
["Have any members of the development team previously received any of the resources listed above?"]
[]
["Name of Recipient: ",{"$nulls":5},"Year(s) Received: "]
["Resources Received: ",{"$nulls":5},"City/County Funded:"]
[]
["Name of Recipient: ",{"$nulls":5},"Year(s) Received: "]
["Resources Received: ",{"$nulls":5},"City/County Funded:"]
[]
["Name of Recipient: ",{"$nulls":5},"Year(s) Received: "]
["Resources Received: ",{"$nulls":5},"City/County Funded:"]
[]
["Name of Recipient: ",{"$nulls":5},"Year(s) Received: "]
["Resources Received: ",{"$nulls":5},"City/County Funded:"]
[]
["Name of Recipient: ",{"$nulls":5},"Year(s) Received: "]
["Resources Received: ",{"$nulls":5},"City/County Funded:"]
[]
["Name of Recipient: ",{"$nulls":5},"Year(s) Received: "]
["Resources Received: ",{"$nulls":5},"City/County Funded:"]
[]
["Disclosure of Relationship"]
["Applicants must disclose any current or former (within 2 years of this application) KHRC employees acting as a consultant or interested party. Current KHRC employees cannot receive a financial gain from the funding of a project received through KHRC for a period of two years after his/her employment ends.\n\nBy completing this application, the applicant is agreeing to KHRC's Disclosure of Relationship clause and must comply by verifying the project does not create financial gain for the current KHRC employee. The applicant should submit the proper information when requesting disbursement of funds to show compliance."]
{"$rows_empty":7}
["Are any members of the development team or additional interested "]
["parties a current or former employee of KHRC?"]
[]
["If yes, who?"]
[]
["Describe their involvement in the project:"]
[]
[]
[]
[]
["IX. Additional Development Information:"]
[]
["Project Type"]
["Please select all that apply and indicate number of units where appropriate. "]
["Detached Single Family:",null,null,null,"Detached Multi-Family:",null,null,null,"Apartments:"]
["Rowhouse/Townhouse:",{"$nulls":4},"Partial Basement:",null,null,null,"Stories:"]
[null,"Slab on Grade:",null,null,null,"Crawl Space:",null,null,null,"Elevator:"]
[null,"Full Basement:",null,null,"If other, please describe:"]
[]
["X. Annual Rental Operating Income and Expense:"]
[]
["If you do not plan to incorporate rental units in your project, please skip this section."]
[]
["Operating Income"]
[]
["Unit Type",null,"# Units","Monthly Rent Per Unit",null,null,"Total Tenant Paid Rent:",null,"Square Feet Per Unit"]
["BR",null,0,0,null,null,{"$f":"C359*D359","v":0}]
["BR",null,0,0,null,null,{"$f":"C360*D360","v":0}]
["BR",null,0,0,null,null,{"$f":"C361*D361","v":0}]
["BR",null,0,0,null,null,0]
["Total:",null,{"$f":"SUM(C359:C362)","v":0},null,null,null,{"$f":"SUM(G359:H362)","v":0}]
[]
["Total Number of Units:",null,null,null,{"$f":"C363","v":0}]
["Other Income Type:",null,null,null,0]
["Vacancy Allowance:",null,null,null,0]
[]
["Applicants should include additional sources of cash flow such as RHID, other tax abatemements, grants, etc. in the \"Plus Other Monthly Income Amount\" cell in row 373. "]
[]
[]
["Total Monthly Rental Income:",null,null,null,{"$f":"G363","v":0}]
["Plus Other Monthly Income Amount:",null,null,null,0]
["Less Monthly Vacancy Allowance:",null,null,null,{"$f":"E367*E372","v":0}]
["Total Monthly Operating Income:",null,null,null,{"$f":"E372+E373-E374","v":0}]
[]
["Total Annualized Operating Income:",null,null,null,{"$f":"E375*12","v":0}]
[]
["Annual Operating Expenses"]
[]
["Administrative",{"$nulls":11},"Application Tip - Section X: In the left columns of the Administrative, Operating, and Maintenance tables, any cells labeled \"Other\" can be edited to describe the cost you are requesting. Please delete the word \"Other\" and enter the line item's information. "]
["Payroll (include taxes)",{"$nulls":5},0]
["Advertising / Marketing",{"$nulls":5},0]
["Legal / Partnership",{"$nulls":5},0]
["Accounting/Audit",{"$nulls":5},0]
["Professional Services",{"$nulls":5},0]
["Interest Expense",{"$nulls":5},0]
["Other",{"$nulls":5},0]
["Other",{"$nulls":5},0]
["Other",{"$nulls":5},0]
["Total Administrative Cost:",{"$nulls":5},{"$f":"SUM(G382:H390)","v":0}]
[]
["Operating"]
["Management Fee",{"$nulls":5},0]
["Utilities (Electricity, Gas, Water, Sewer, Internet)",{"$nulls":5},0]
["Elevator",{"$nulls":5},0]
["Trash Removal",{"$nulls":5},0]
["Insurance",{"$nulls":5},0]
["Other",{"$nulls":5},0]
["Other",{"$nulls":5},0]
["Other",{"$nulls":5},0]
["Total Operating Cost:",{"$nulls":5},{"$f":"SUM(G394:H401)","v":0}]
[]
["Maintenance"]
["Repairs",{"$nulls":5},0]
["Turnovers",{"$nulls":5},0]
["Exterminating",{"$nulls":5},0]
["Ground Expense",{"$nulls":5},0]
["Other",{"$nulls":5},0]
["Other",{"$nulls":5},0]
["Other",{"$nulls":5},0]
["Total Mainetenance Cost:",{"$nulls":5},{"$f":"SUM(G405:H411)","v":0}]
[]
["Total Real Estate Taxes:",{"$nulls":5},0]
["Reserve for Capital Expenditures:",{"$nulls":5},0]
["Total Annual Operating Expense:",{"$nulls":5},{"$f":"SUM(G391,G402,G412,G414:H415)","v":0}]
[]
["IMPORTANT: All applicants proposing a rental project must also complete the Rental Operating Proforma tab of this application. Failing to complete the Rental Operating Proforma for rental projects may result in an application being evaluated as substantially incomplete."]
[]
[]
[]
["XI. Homeownership:"]
[]
["If you do not plan to incorporate homeownership units in your project, please skip this section."]
[]
["Unit Type","Number of Units",null,"Square Feet",null,"Amount of Down Payment Assistance",null,"Projected Sales Price",null,"Estimated PITI",null,null,null,"Application Tip - Section XI: PITI is the sum of the anticipated principal, interest, taxes, and insurance for the home. "]
[]
["BR",0,null,null,null,0,null,0,null,0]
[" BR",0,null,null,null,0,null,0,null,0]
["BR",0,null,null,null,0,null,0,null,0]
["BR",0,null,null,null,0,null,0,null,0]
["Total:",{"$f":"SUM(B428:C431)","v":0}]
[]
["XII. Development Budget:"]
[]
["List Total Development Costs. "]
[]
["Itemized Cost",{"$nulls":4},"Development Cost",null,null,"Percent of Development Cost"]
["Acquisition"]
["Land",{"$nulls":4},0,null,null,{"$f":"F440/F499","v":{"$error":"#DIV/0!"}}]
["Building / Existing Structures",{"$nulls":4},0,null,null,{"$f":"F441/F499","v":{"$error":"#DIV/0!"}}]
["Other",{"$nulls":4},0,null,null,{"$f":"F442/F499","v":{"$error":"#DIV/0!"}}]
["Subtotal ",{"$nulls":4},{"$f":"SUM(F440:H442)","v":0},null,null,{"$f":"SUM(I440:K442)","v":{"$error":"#DIV/0!"}},null,null,null,"Application Tip - Section XII: In the Itemized Cost column, any cells labeled \"Other\" can be edited to describe the cost you are requesting. Please delete the word \"Other\" and enter the line item's information. "]
["For Site Work:"]
["Utility Connections",{"$nulls":4},0,null,null,{"$f":"F445/F499","v":{"$error":"#DIV/0!"}}]
["Offsite Infrastructure",{"$nulls":4},0,null,null,{"$f":"F446/F499","v":{"$error":"#DIV/0!"}}]
["Onsite Infrastructure",{"$nulls":4},0,null,null,{"$f":"F447/F499","v":{"$error":"#DIV/0!"}}]
["Demolition ",{"$nulls":4},0,null,null,{"$f":"F448/F499","v":{"$error":"#DIV/0!"}}]
["Other",{"$nulls":4},0,null,null,{"$f":"F449/F499","v":{"$error":"#DIV/0!"}}]
["Subtotal ",{"$nulls":4},{"$f":"SUM(F445:H449)","v":0},null,null,{"$f":"SUM(I445:K449)","v":{"$error":"#DIV/0!"}}]
["For Rehabilitation & New Construction:"]
["New Building",{"$nulls":4},0,null,null,{"$f":"F452/F499","v":{"$error":"#DIV/0!"}}]
["Rehabilitation",{"$nulls":4},0,null,null,{"$f":"F453/F499","v":{"$error":"#DIV/0!"}}]
["Accessory Building",{"$nulls":4},0,null,null,{"$f":"F454/F499","v":{"$error":"#DIV/0!"}}]
["General Requirements",{"$nulls":4},0,null,null,{"$f":"F455/F499","v":{"$error":"#DIV/0!"}}]
["Contractor Overhead",{"$nulls":4},0,null,null,{"$f":"F456/F499","v":{"$error":"#DIV/0!"}}]
["Contractor Profit",{"$nulls":4},0,null,null,{"$f":"F457/F499","v":{"$error":"#DIV/0!"}}]
["Building Permit Fee",{"$nulls":4},0,null,null,{"$f":"F458/F499","v":{"$error":"#DIV/0!"}}]
["Other",{"$nulls":4},0,null,null,{"$f":"F459/F499","v":{"$error":"#DIV/0!"}}]
["Subtotal ",{"$nulls":4},{"$f":"SUM(F452:H459)","v":0},null,null,{"$f":"SUM(I452:K459)","v":{"$error":"#DIV/0!"}}]
["For Contingency:"]
["Construction Contingency",{"$nulls":4},0,null,null,{"$f":"F462/F499","v":{"$error":"#DIV/0!"}}]
["Other",{"$nulls":4},0,null,null,{"$f":"F463/F499","v":{"$error":"#DIV/0!"}}]
["Subtotal ",{"$nulls":4},{"$f":"SUM(F462:H463)","v":0},null,null,{"$f":"SUM(I462:K463)","v":{"$error":"#DIV/0!"}}]
["Professional Fees & Services"]
["Architect Fee ",{"$nulls":4},0,null,null,{"$f":"F466/F499","v":{"$error":"#DIV/0!"}}]
["Legal / Attorneys' Fees",{"$nulls":4},0,null,null,{"$f":"F467/F499","v":{"$error":"#DIV/0!"}}]
[" Consultant",{"$nulls":4},0,null,null,{"$f":"F468/F499","v":{"$error":"#DIV/0!"}}]
["Site Survey",{"$nulls":4},0,null,null,{"$f":"F469/F499","v":{"$error":"#DIV/0!"}}]
["Civil / Site Engineering",{"$nulls":4},0,null,null,{"$f":"F470/F499","v":{"$error":"#DIV/0!"}}]
["Other",{"$nulls":4},0,null,null,{"$f":"F471/F499","v":{"$error":"#DIV/0!"}}]
["Subtotal ",{"$nulls":4},{"$f":"SUM(F466:H471)","v":0},null,null,{"$f":"SUM(I466:K471)","v":{"$error":"#DIV/0!"}}]
["For Interim Costs:"]
["Construction Insurance",{"$nulls":4},0,null,null,{"$f":"F474/F499","v":{"$error":"#DIV/0!"}}]
["Construction Interest",{"$nulls":4},0,null,null,{"$f":"F475/F499","v":{"$error":"#DIV/0!"}}]
["Construction Loan Origination Fee",{"$nulls":4},0,null,null,{"$f":"F476/F499","v":{"$error":"#DIV/0!"}}]
["Real Estate Taxes",{"$nulls":4},0,null,null,{"$f":"F477/F499","v":{"$error":"#DIV/0!"}}]
["Other",{"$nulls":4},0,null,null,{"$f":"F478/F499","v":{"$error":"#DIV/0!"}}]
["Subtotal ",{"$nulls":4},{"$f":"SUM(F474:H478)","v":0},null,null,{"$f":"SUM(I474:K478)","v":{"$error":"#DIV/0!"}}]
["For Financing Fees and Expenses:"]
["Permanent Loan Origination Fee",{"$nulls":4},0,null,null,{"$f":"F481/F499","v":{"$error":"#DIV/0!"}}]
["Bond Fees",{"$nulls":4},0,null,null,{"$f":"F482/F499","v":{"$error":"#DIV/0!"}}]
["Title Insurance, Filing, Closing Costs",{"$nulls":4},0,null,null,{"$f":"F483/F499","v":{"$error":"#DIV/0!"}}]
["Legal / Attorneys' Fees",{"$nulls":4},0,null,null,{"$f":"F484/F499","v":{"$error":"#DIV/0!"}}]
["Appraisal",{"$nulls":4},0,null,null,{"$f":"F485/F499","v":{"$error":"#DIV/0!"}}]
["Environmental Report",{"$nulls":4},0,null,null,{"$f":"F486/F499","v":{"$error":"#DIV/0!"}}]
["Other",{"$nulls":4},0,null,null,{"$f":"F487/F499","v":{"$error":"#DIV/0!"}}]
["Subtotal ",{"$nulls":4},{"$f":"SUM(F481:H487)","v":0},null,null,{"$f":"SUM(I481:K487)","v":{"$error":"#DIV/0!"}}]
["For Developer's Fees:"]
["Developer's Overhead",{"$nulls":4},0,null,null,{"$f":"F490/F499","v":{"$error":"#DIV/0!"}}]
["Developer's Fees",{"$nulls":4},0,null,null,{"$f":"F491/F499","v":{"$error":"#DIV/0!"}}]
["Other",{"$nulls":4},0,null,null,{"$f":"F492/F499","v":{"$error":"#DIV/0!"}}]
["Subtotal ",{"$nulls":4},{"$f":"SUM(F490:H492)","v":0},null,null,{"$f":"SUM(I490:K492)","v":{"$error":"#DIV/0!"}}]
["For Development Reserves:"]
["Rent-Up Reserve / Operating Reserve",{"$nulls":4},0,null,null,{"$f":"F495/F499","v":{"$error":"#DIV/0!"}}]
["Other",{"$nulls":4},0,null,null,{"$f":"F496/F499","v":{"$error":"#DIV/0!"}}]
["Subtotal ",{"$nulls":4},{"$f":"SUM(F495:H496)","v":0},null,null,{"$f":"SUM(I495:K496)","v":{"$error":"#DIV/0!"}}]
[]
["Total",{"$nulls":4},{"$f":"SUM(F443,F450,F460,F464,F472,F479,F488,F493,F497)","v":0},null,null,{"$f":"SUM(I443,I450,I460,I464,I472,I479,I488,I493,I497)","v":{"$error":"#DIV/0!"}}]
[]
["XIII. Job Creation and Economic Development"]
[]
["Please provide a narrative explaining job creation and economic development in your community, including major employers with the number of their employees, open positions, and unemployment rate. This narrative should include relevant job and economic development numbers from the applicant's housing study. Submit documentation to support each answer (i.e. letters from employers)."]
[]
[]
[]
["Major Employers in the Area"]
["Employer Name:",{"$nulls":4},"# of employees: ",null,null,"# of open positions: "]
["Employer Name:",{"$nulls":4},"# of employees: ",null,null,"# of open positions: "]
["Employer Name:",{"$nulls":4},"# of employees: ",null,null,"# of open positions: "]
["Employer Name:",{"$nulls":4},"# of employees: ",null,null,"# of open positions: "]
["Employer Name:",{"$nulls":4},"# of employees: ",null,null,"# of open positions: "]
["Employer Name:",{"$nulls":4},"# of employees: ",null,null,"# of open positions: "]
["Employer Name:",{"$nulls":4},"# of employees: ",null,null,"# of open positions: "]
[]
["Please provide a brief narrative on open positions and projected employment opportunities."]
{"$rows_empty":7}
["Current Unemployment Rate:",null,null,null,"Date collected and community definition: ",{"$nulls":7},"Application Tip - Community Definition: Please enter the name of either the City or the County from which the unemployment rate data was collected. "]
[]
["Please provide a brief narrative on how the proposal provides a solution to the immediate workforce needs in the community. "]
{"$rows_empty":8}
["XIV. Application Next Steps"]
[]
["THIS APPLICATION IS NOT COMPLETE. Completing only the Project Information tab of this application DOES NOT qualify as a complete application for the MIH or KHITC programs. Completing only this tab of the spreadsheet may result in an application being evaluated as substantially incomplete. After completing the Project Information tab, complete the corresponding tabs for each program for which the applicant intends to apply. Each program has a separate application tab in this spreadsheet. If the applicant intends to apply for each program, they will need to complete the corresponding application for each program. "]

{"sheet":"Rental Operating Proforma","index":1,"n_rows":30,"n_cols":14,"rows_kept":30,"cut":false,"hidden":false,"merged":[[6,13,7,27],[9,13,10,27],[8,0,8,1],[8,4,8,5],[0,0,0,11],[1,0,1,11],[3,0,3,2],[4,0,4,2],[6,1,6,4],[29,2,29,11],[12,0,12,1],[15,0,15,1],[16,0,16,1],[17,0,17,1],[18,0,18,1],[19,0,19,1],[21,0,21,1],[23,0,23,1],[24,0,24,1],[26,0,26,1],[28,0,28,1]]}
[{"$error":"#VALUE!"}]
["Rental Operating Proforma"]
[]
["Orange Cells Require User Input"]
["Grey Cells are Automatically Calculated"]
[]
["Project Name:",{"$nulls":12},"Application Tip - Income Adjuster:  This percentage accounts for anticipated growth in rental and other income sources (e.g., annual rent increases or escalations)."]
[]
["Income Adjuster:",null,0,null,"Expense Adjuster:",null,0]
[{"$nulls":13},"Application Tip - Expense Adjuster:  This percentage captures projected inflation or changes in operating costs such as maintenance, insurance, utilities, or property management fees."]
[]
["Income:",null,"Year 1","Year 2","Year 3","Year 4","Year 5","Year 6","Year 7","Year 8","Year 9","Year 10"]
["Annual Operating Income",null,0,{"$f":"ROUND((C13*(1+$C$9)),0)","v":0},0,0,0,0,0,0,0,0]
[]
["Expenses:"]
["Administrative",null,0,{"$f":"ROUND((C16*(1+$G$9)),0)","v":0},0,0,0,0,0,0,0,0]
["Operating",null,0,0,0,0,0,0,0,0,0,0]
["Maintenance",null,0,0,0,0,0,0,0,0,0,0]
["Real Estate Taxes",null,0,0,0,0,0,0,0,0,0,0]
["Total Expense:",null,{"$f":"SUM(C16:C19)","v":0},{"$f":"SUM(D16:D19)","v":0},0,0,0,0,0,0,0,0]
[]
["NOI (w/o Reserves & Debt Service)",null,{"$f":"C13-C20","v":0},{"$f":"D13-D20","v":0},{"$f":"E13-E20","v":0},0,0,0,0,0,0,0]
[]
["Replacement Reserves",null,0,0,0,0,0,0,0,0,0,0]
["Debt Service",null,0,{"$f":"+C25","v":0},0,0,0,0,0,0,0,0]
[]
["Cashflow After Debt Service:",null,{"$f":"C22-C24-C25","v":0},0,0,0,0,0,0,0,0,0]
[]
["Debt Service Coverage Ratio",null,{"$f":"SUM(C22/C25)","v":{"$error":"#DIV/0!"}},{"$f":"SUM(D22/D25)","v":{"$error":"#DIV/0!"}},{"$error":"#DIV/0!"},{"$error":"#DIV/0!"},{"$error":"#DIV/0!"},{"$error":"#DIV/0!"},{"$error":"#DIV/0!"},{"$error":"#DIV/0!"},{"$error":"#DIV/0!"},{"$error":"#DIV/0!"}]
[null,null,"The error formula in cells C29-L29 will be removed once applicants fill out all required cells. "]

{"sheet":"MIH Application","index":2,"n_rows":53,"n_cols":13,"rows_kept":53,"cut":false,"hidden":false,"merged":[[18,3,18,8],[0,0,6,10],[7,0,13,10],[15,0,15,10],[16,1,16,6],[17,0,17,10],[18,0,18,2],[19,1,19,3],[19,5,19,6],[19,9,19,10],[20,1,20,3],[20,5,20,6],[20,7,20,8],[20,9,20,10],[21,0,21,2],[21,3,21,4],[21,12,21,26],[23,0,23,10],[24,1,24,4],[24,6,24,10],[24,12,25,26],[25,1,25,4],[25,6,25,10],[33,1,33,4],[33,6,33,10],[26,1,26,4],[26,6,26,7],[26,9,26,10],[27,1,27,4],[29,0,29,10],[30,1,30,4],[30,6,30,10],[31,1,31,4],[31,6,31,10],[32,1,32,4],[32,6,32,7],[32,9,32,10],[35,0,35,10],[37,0,39,6],[37,7,39,10],[40,7,40,10],[41,0,46,10],[52,0,52,2],[52,4,52,6],[52,8,52,10],[48,12,49,26],[49,0,49,4],[49,6,49,10],[51,0,51,2],[51,4,51,6],[51,8,51,10],[48,0,48,4],[48,6,48,10]]}
[{"$error":"#VALUE!"}]
[]
[]
[]
[]
[]
[]
["Instructions for the Moderate Income Housing (MIH) 2025 Round 1 Application: To better facilitate evaluation, KHRC requires this application to be submitted via electronic upload via the online platform Procorem.\n\nPlease complete this application in Excel and save as \"25-01-NameofApplicant-Application.xlsx\" Example: Anytown, KS would name the application \"25-01-Anytown-Application.xlsx\". Accompanying documents must be uploaded electronically as PDF documents. If the applicant has difficultly or cannot upload the application electronically, please email MIH@kshousingcorp.org."]
{"$rows_empty":7}
["I. Applicant Information:"]
[]
["Applicant Information"]
["Applicant Name (City/County):"]
["Address:",null,null,null,"City:",null,null,null,"State: ","KS"]
["County:",null,null,null,"Zip:",null,null,"Phone:"]
["Unique Entity ID (Required):",{"$nulls":11},"Application Tip - Section I: SAM.gov registration is necessary for obtaining Unique Entity ID (UEI). Format: 12 alpha-numeric characters."]
[]
["Primary Contact"]
["Name:",{"$nulls":4},"Email:",{"$nulls":6},"Application Tip - Section I: The primary contact person should be someone that is familiar with the development and application and can answer questions that arise during the application review.  "]
["Phone:",{"$nulls":4},"Address:"]
["City:",{"$nulls":4},"State: ","KS",null,"Zip:"]
["Title:"]
[]
["Elected Official - This individual will be addressed in official MIH announcements from KHRC. "]
["Name:",{"$nulls":4},"Email:"]
["Phone:",{"$nulls":4},"Address:"]
["City:",{"$nulls":4},"State: ","KS",null,"Zip:"]
["Title:",{"$nulls":4},"Term:"]
[]
["II. Applicant Agreement"]
[]
["The Applicant (City/County) hereby makes application to Kansas Housing Resources Corporation for the Moderate Income Housing Program in the amount of:",{"$nulls":6},{"$f":"SUM('Project Information'!I126:K126)","v":0}]
[]
[]
[{"$nulls":7},"Prefilled from Project Information tab."]
["The Applicant agrees that KHRC shall not be held responsible or liable for representations made to the undersigned, or its investors, relating to the KHRC MIH. Therefore, the undersigned Applicant assumes all the risk of damages, losses, costs, and expenses related thereto, and further agrees to indemnify and hold harmless KHRC against any and all claims, suits, losses, damages, costs, and expenses of any kind and of any nature, that KHRC may hereinafter suffer, incur or pay arising out of the use of the information concerning the MIH on the above referenced development. "]
[]
[]
[]
[]
[]
[]
[{"$nulls":12},"Application Tip: Section II - If you are unable to sign electronically in Excel or Adobe, you can print only this agreement page, sign, scan, and include with your Application attachments."]
["Applicant Representative Name",{"$nulls":5},"Applicant Representative Signature"]
[]
[]
["Organization",null,null,null,"Title",null,null,null,"Date"]

{"sheet":"KHITC Application","index":3,"n_rows":183,"n_cols":13,"rows_kept":183,"cut":false,"hidden":false,"merged":[[157,4,157,6],[159,0,159,7],[160,0,161,10],[98,0,98,1],[98,2,98,6],[99,0,99,1],[99,2,99,6],[100,0,100,3],[100,4,100,6],[101,0,101,3],[101,4,101,6],[102,0,102,3],[102,4,102,6],[104,0,104,10],[105,0,105,1],[105,2,105,4],[106,2,106,4],[107,2,107,4],[111,0,111,7],[112,0,113,10],[114,2,114,6],[115,2,115,6],[118,0,118,3],[118,4,118,6],[120,0,120,10],[148,0,148,3],[148,4,148,6],[149,0,149,3],[149,4,149,6],[150,0,150,3],[150,4,150,6],[152,0,152,10],[143,0,143,7],[144,0,145,10],[146,0,146,1],[146,2,146,6],[137,0,137,1],[137,2,137,4],[138,0,138,1],[138,2,138,4],[139,0,139,1],[139,2,139,4],[140,0,140,3],[140,4,140,6],[141,0,141,3],[141,4,141,6],[131,0,131,1],[131,2,131,6],[132,0,132,3],[132,4,132,6],[133,0,133,3],[133,4,133,6],[134,0,134,3],[134,4,134,6],[136,0,136,10],[130,0,130,1],[130,2,130,6],[127,0,127,7],[128,0,129,10],[121,0,121,1],[121,2,121,4],[122,0,122,1],[122,2,122,4],[123,0,123,1],[123,2,123,4],[124,0,124,3],[124,4,124,6],[125,0,125,3],[125,4,125,6],[115,0,115,1],[116,0,116,3],[116,4,116,6],[117,0,117,3],[117,4,117,6],[109,0,109,3],[109,4,109,6],[114,0,114,1],[106,0,106,1],[107,0,107,1],[108,0,108,3],[108,4,108,6],[34,2,34,7],[85,4,85,6],[82,0,82,1],[62,0,62,10],[64,0,73,10],[84,4,84,6],[45,0,45,5],[52,12,54,25],[52,0,52,6],[52,7,52,8],[54,0,54,10],[55,0,60,10],[48,2,48,3],[80,0,81,10],[43,12,44,25],[45,8,45,9],[43,0,43,3],[45,6,45,7],[43,4,43,5],[79,0,79,10],[41,4,41,5],[38,2,38,3],[86,0,86,3],[75,0,75,10],[30,0,30,10],[31,0,31,3],[31,4,31,10],[32,0,32,3],[32,4,32,5],[35,6,35,7],[36,6,36,7],[37,6,37,7],[38,6,38,7],[35,2,35,3],[36,2,36,3],[37,2,37,3],[50,0,50,4],[50,7,50,8],[38,4,38,5],[40,0,40,10],[41,0,41,3],[35,4,35,5],[36,4,36,5],[37,4,37,5],[47,0,47,10],[48,0,48,1],[0,0,6,10],[7,0,13,10],[15,0,15,10],[22,0,22,10],[17,3,17,8],[18,1,18,3],[18,5,18,6],[19,1,19,3],[19,5,19,6],[17,0,17,2],[20,0,20,1],[20,2,20,3],[19,8,19,10],[18,8,18,9],[16,12,16,21],[20,5,20,6],[20,8,20,10],[17,12,18,25],[23,0,23,1],[23,2,23,3],[23,5,23,7],[23,9,23,10],[28,0,28,10],[24,0,24,4],[24,5,24,10],[26,5,26,6],[25,1,25,3],[25,5,25,6],[25,9,25,10],[26,1,26,3],[178,12,179,25],[178,0,178,4],[178,6,178,10],[179,0,179,4],[179,6,179,10],[86,4,86,6],[82,2,82,6],[83,2,83,6],[88,0,88,10],[82,12,83,25],[93,0,93,3],[89,0,89,1],[92,0,92,3],[90,0,90,1],[91,0,91,1],[89,2,89,4],[90,2,90,4],[91,2,91,4],[92,4,92,6],[93,4,93,6],[84,12,85,25],[83,0,83,1],[84,0,84,3],[85,0,85,3],[181,0,181,2],[181,4,181,6],[181,8,181,10],[182,0,182,2],[182,4,182,6],[182,8,182,10],[95,0,95,7],[96,0,97,10],[163,0,163,10],[165,8,167,10],[168,8,168,10],[165,0,167,7],[169,0,173,10],[147,0,147,1],[147,2,147,6],[153,0,153,1],[153,2,153,4],[154,0,154,1],[154,2,154,4],[155,0,155,1],[155,2,155,4],[156,0,156,3],[156,4,156,6],[157,0,157,3]]}
[{"$error":"#VALUE!"}]
[]
[]
[]
[]
[]
[]
["Instructions for the Kansas Housing Investor Tax Credit (KHITC) 2025 Round 1 Application: To better facilitate evaluation, KHRC requires this application to be submitted via electronic upload via the online platform Procorem.\n\nPlease complete this application in Excel and save as \"25-01-NameofApplicant-Application.xlsx\" Example: Anytown, KS would name the application \"25-01-Anytown-Application.xlsx\". Accompanying documents must be uploaded electronically as PDF documents. If the applicant has difficultly or cannot upload the application electronically, please email MIH@kshousingcorp.org."]
{"$rows_empty":7}
["I. Applicant Information:"]
[]
["Builder/Developer Name(s):",{"$nulls":11},"Application Tip - Section I: As stated in the KHITC Act, Applicant must be the Builder/Developer.  Applicant information should be consistent throughout the Excel application. "]
["Address:",null,null,null,"City:",null,null,"State: "]
["County:",null,null,null,"Zip:",null,null,"Phone:"]
["Primary Contact:",null,null,null,"Phone:",null,null,"Email:"]
[]
["II. Project Information:"]
[]
["Project Name (should match Notice of Application):"]
["Address:",null,null,null,"City:",null,null,null,"State: "]
["County:",null,null,null,"Zip:"]
[]
["III. Request"]
[]
["Using the most recent data provided by the Secretary of State, indicate the population of the county where the project"]
["will be located. Applicants should use the",null,null,null,"Kansas Certified Population Data provided by the Secretary of State and "]
["the Kansas Division of the Budget."]
[]
[null,null,"Credit Eligibility"]
[null,null,"County Size",null,"County Population",null,"Credits/Unit"]
[null,null,"Small",null,"No more than 8,000",null,35000]
[null,null,"Medium",null,"8,001 – 25,000",null,32000]
[null,null,"Large",null,"25,001 – 75,000",null,30000]
[]
["Based on the population indicated in cell HJ30 and the county size column in the chart above, indicate the maximum "]
["credit per unit this project is eligible for:"]
[]
["Number of KHITC units in this project:",{"$nulls":11},"Application Tip - Section III: Projects may request credits for a maximum 40 residential units per year. The project may request additional credits for additional units in later years."]
[]
["Number of Kansas Housing Investor Tax Credit requested: ",{"$nulls":5},{"$f":"SUM(E42*E44)","v":0}]
[]
["Does the applicant anticipate applying for additional credits for additional units and/or phases of this project in"]
["future years?"]
[]
["Equity Price per Kansas Housing Investor Tax Credit: "]
[]
["Net Tax Credit Equity Available to the Development as a funding source: ",{"$nulls":6},{"$f":"G46*H51","v":0},{"$nulls":4},"Application Tip - Section III: Net tax credit equity is the KHITC request amount (cell GH46) multiplied by the anticipated per credit pricing (HI51). For example, a project in a small community requesting 350,000 in KHITC for 10 units, with a per credit price of $.80, works out to 350,000 x $.80 = $280,000."]
[]
["Please describe activities that will result in eligible cash investments made into the project:"]
{"$rows_empty":7}
["IV. Identified Investors"]
[]
["KHRC will issue tax credits to qualified investors, including a builder or developer, for eligible cash investments in a qualified housing project. KHRC may allocate and issue tax credits based on the amount of the cash investment made by the qualified investor; however, the tax credit may be claimed in its entirety in the taxable year the cash investment is made.\n\nApplicants should list the known Qualified Investors at application. This list may change through the construction period.  \n\nK.S.A. 79-32,313(d) provides that all or a portion of the issued KHITCs may be transferred, multiple times, and strikes the requirement that an investor have no tax liability. "]
{"$rows_empty":10}
["Do you intend to transfer the awarded credits for the Qualified Housing Project? If yes, please see the note above."]
[]
["Yes",null,null,"No"]
[]
["Investors"]
["Please provide the following information on identified investors. Each identified investor should have a Letter of Intent to invest included with the application. "]
[]
["Name of Investor:",{"$nulls":11},"Application Tip - Section IV: Examples of identified investors are a builder/developer that has made a qualified cash investment into the project and intends to utilize KHITCs for their own tax liability or a financial institution that intends to purchase the KHITCs from the builder/developer. "]
["Investor Location:"]
["Employer Identification Number (EIN):",{"$nulls":11},"Application Tip - Section IV: If the identified investor is a Natural Person, providing the last 4 digits of the Social Security Number on the EIN line is acceptable at time of application."]
["Committed Cash Investment:"]
["Is the investment a Qualified Security?"]
[]
["Is the investor one of the following? Please select all that apply. "]
["A Natural Person:"]
["A Business: "]
["A Bank: "]
["Other Financial Institution or Association: "]
["The project builder or developer:"]
[]
["If not located in Kansas, provide confirmation entity conducts business in Kansas."]
[]
[]
["Name of Investor:"]
["Investor Location:"]
["Employer Identification Number (EIN):"]
["Committed Cash Investment:"]
["Is the investment a Qualified Security?"]
[]
["Is the investor one of the following? Please select all that apply. "]
["A Natural Person:"]
["A Business: "]
["A Bank: "]
["Other Financial Institution or Association: "]
["The project builder or developer:"]
[]
["If not located in Kansas, provide confirmation entity conducts business in Kansas."]
[]
[]
["Name of Investor:"]
["Investor Location:"]
["Employer Identification Number (EIN):"]
["Committed Cash Investment:"]
["Is the investment a Qualified Security?"]
[]
["Is the investor one of the following? Please select all that apply. "]
["A Natural Person:"]
["A Business: "]
["A Bank: "]
["Other Financial Institution or Association: "]
["The project builder or developer:"]
[]
["If not located in Kansas, provide confirmation entity conducts business in Kansas."]
[]
[]
["Name of Investor:"]
["Investor Location:"]
["Employer Identification Number (EIN):"]
["Committed Cash Investment:"]
["Is the investment a Qualified Security?"]
[]
["Is the investor one of the following? Please select all that apply. "]
["A Natural Person:"]
["A Business: "]
["A Bank: "]
["Other Financial Institution or Association: "]
["The project builder or developer:"]
[]
["If not located in Kansas, provide confirmation entity conducts business in Kansas."]
[]
[]
["Name of Investor:"]
["Investor Location:"]
["Employer Identification Number (EIN):"]
["Committed Cash Investment:"]
["Is the investment a Qualified Security?"]
[]
["Is the investor one of the following? Please select all that apply. "]
["A Natural Person:"]
["A Business: "]
["A Bank: "]
["Other Financial Institution or Association: "]
["The project builder or developer:"]
[]
["If not located in Kansas, provide confirmation entity conducts business in Kansas."]
[]
[]
[]
["V. Applicant Agreement"]
[]
["The Applicant (developer/builder) hereby makes application to Kansas Housing Resources Corporation for the Kansas Housing Investor Tax Credit (KHITC) in the amount of:",{"$nulls":7},{"$f":"G46","v":0}]
[]
[]
[{"$nulls":8},"Prefilled from Section IV."]
["The Applicant agrees that KHRC shall not be held responsible or liable for representations made to the undersigned, or its investors, relating to the KHRC HITC. Therefore, the undersigned Applicant assumes all the risk of damages, losses, costs, and expenses related thereto, and further agrees to indemnify and hold harmless KHRC against any and all claims, suits, losses, damages, costs, and expenses of any kind and of any nature, that KHRC may hereinafter suffer, incur or pay arising out of the use of the information concerning the HITC on the above referenced development. "]
{"$rows_empty":8}
[{"$nulls":12},"Application Tip - Section V: If you are unable to sign electronically in Excel or Adobe, you can print only this agreement page, sign, scan, and include with your Application attachments."]
["Applicant Representative Name",{"$nulls":5},"Applicant Representative Signature"]
[]
[]
["Organization",null,null,null,"Title",null,null,null,"Date"]

{"sheet":"RLF Application","index":4,"n_rows":248,"n_cols":13,"rows_kept":248,"cut":false,"hidden":true,"merged":[[122,8,122,9],[125,8,125,9],[126,8,126,9],[130,8,130,9],[132,8,132,9],[107,0,110,10],[112,0,112,10],[133,8,133,9],[134,8,134,9],[123,1,123,6],[124,1,124,6],[125,1,125,6],[123,8,123,9],[124,8,124,9],[116,8,116,9],[116,1,116,6],[131,1,131,6],[127,1,127,6],[128,1,128,6],[129,1,129,6],[114,0,114,10],[137,8,137,9],[138,8,138,9],[139,8,139,9],[140,8,140,9],[141,8,141,9],[117,1,118,6],[120,1,120,6],[121,1,121,6],[122,1,122,6],[135,1,136,6],[141,1,141,6],[138,1,138,6],[139,1,139,6],[140,1,140,6],[134,1,134,6],[137,1,137,6],[119,1,119,6],[119,8,119,9],[120,8,120,9],[121,8,121,9],[133,1,133,6],[126,1,126,6],[130,1,130,6],[132,1,132,6],[203,0,204,10],[205,0,207,10],[209,0,210,10],[211,0,213,10],[215,0,216,10],[217,0,219,10],[191,0,191,1],[191,2,191,4],[193,0,193,5],[194,0,196,10],[198,0,198,10],[199,0,201,10],[247,0,249,10],[235,7,235,10],[236,0,239,10],[241,12,242,26],[221,0,223,10],[224,0,226,10],[228,0,228,3],[228,4,228,5],[230,0,230,10],[232,0,234,6],[232,7,234,10],[244,0,244,2],[241,0,241,4],[241,6,241,10],[242,0,242,4],[242,6,242,10],[245,0,245,2],[244,4,244,6],[244,8,244,10],[245,4,245,6],[245,8,245,10],[190,0,190,10],[160,0,160,6],[161,0,163,10],[165,0,166,10],[167,0,169,10],[171,0,173,10],[174,0,176,10],[155,0,155,2],[155,3,155,5],[156,0,156,1],[156,3,156,5],[157,0,157,6],[158,0,158,3],[158,4,158,10],[178,0,178,5],[179,0,181,10],[183,0,183,10],[185,0,185,5],[186,0,188,10],[151,0,151,10],[153,0,153,1],[153,3,153,5],[154,0,154,2],[154,3,154,5],[148,2,148,3],[143,0,143,10],[145,2,145,3],[145,0,145,1],[146,0,146,1],[147,0,147,1],[148,0,148,1],[145,4,145,10],[146,4,146,10],[147,4,147,10],[148,4,148,10],[149,0,149,4],[146,2,146,3],[147,2,147,3],[105,0,106,10],[82,0,84,10],[86,0,86,2],[87,0,89,10],[91,0,91,2],[92,0,94,10],[96,0,96,4],[68,0,68,2],[69,0,69,8],[69,9,69,10],[71,0,71,10],[79,0,79,10],[81,0,81,2],[73,0,74,10],[75,0,77,10],[30,0,30,10],[32,0,32,2],[33,0,35,10],[97,0,99,10],[101,0,101,1],[101,2,101,3],[102,0,102,1],[102,2,102,10],[103,0,103,1],[103,2,103,10],[52,0,52,3],[53,0,55,10],[58,0,60,10],[62,0,63,10],[64,0,66,10],[37,0,37,3],[38,0,40,10],[42,0,42,1],[43,0,45,10],[47,0,47,2],[48,0,50,10],[57,0,57,10],[0,0,6,10],[7,0,19,10],[21,0,21,10],[23,0,23,10],[24,0,24,1],[24,2,24,7],[28,1,28,3],[28,4,28,8],[28,9,28,10],[25,0,25,1],[25,2,25,7],[26,1,26,3],[26,5,26,6],[26,9,26,10],[27,1,27,3],[27,5,27,6],[27,7,27,8],[27,9,27,10]]}
[{"$error":"#VALUE!"}]
[]
[]
[]
[]
[]
[]
["Instructions for 2024 Round 4 Revolving Loan Fund (RLF) Applications: To apply for an RLF loan, please submit 1) this application, along with 2) all required attachments via email to RLF@kshousingcorp.org. If this application is combined with an MIH and/or a KHITC request, the MIH and KHITC applications and any required attachments must be submitted via Procorem. \n\nIf the applicant is a new and emerging developer and cannot provide any of the requested materials, please reach out to KHRC’s MIH Department to discuss possible options. If the applicant has another lender who is also requesting any of these items, KHRC is glad to discuss coordinating timelines or requirements. \n\nPlease complete this application in Excel and save as \"24-04-NameofApplicant-Application.xlsx\" Example: Anytown, KS would name the application \"24-04-Anytown-Application.xlsx\". Accompanying documents must be emailed as PDF documents. If the applicant has difficultly or cannot upload the application, please email RLF@kshousingcorp.org."]
{"$rows_empty":13}
["I. Applicant Information:"]
[]
["Developer and Project Team Information"]
["Legal Name"]
["Primary Contact"]
["Address:",null,null,null,"City:",null,null,null,"State: ","KS"]
["County:",null,null,null,"Zip:",null,null,"Phone:"]
["Email:",null,null,null,"Type of business, if applicable (e.g.,  LLC, 501c(3)):"]
[]
["Applicant History"]
[]
["Size of existing portfolio:"]
[]
[]
[]
[]
["Scale of projects previously developed:"]
[]
[]
[]
[]
["Primary activities:"]
[]
[]
[]
[]
["Geographic area of operations:"]
[]
[]
[]
[]
["Prior experience with KHRC (if any):"]
[]
[]
[]
[]
["Describe applicant's property management experience, including any compliance experience:"]
[]
[]
[]
[]
["Describe any real estate assets that are in default or foreclosure with a lending institution or that are otherwise at risk of substantive financial problems:"]
[]
[]
[]
[]
[]
["Number of employees:"]
["If requesting additional funds for an existing KHRC project, please include project number:"]
[]
["II. Project Description:"]
[]
["Proposed affordability levels by Area Median Income (AMI) and number of units at each affordability level (e.g., 5 MIH units):"]
[]
[]
[]
[]
[]
["Provide a description for each of the following:"]
[]
["Scope of Work:"]
[]
[]
[]
[]
["Design:"]
[]
[]
[]
[]
["Site Improvements:"]
[]
[]
[]
[]
["Environmental Testing and/or Abatement:"]
[]
[]
[]
[]
["Square Footage:"]
["Building Materials:"]
["Parking:"]
[]
["How does your proposed project respond to the needs of local employers, and respond to feedback received from employers through surveys, outreach, and other engagement?"]
[]
[]
[]
[]
[]
[]
["III. Building and Construction:"]
[]
["Expected date for the following development milestones:"]
[]
[null,"Activity",{"$nulls":6},"Scheduled Date"]
[null,"A. Expected funding commitments (prefilled from Project Information tab):"]
[]
[null,{"$f":"#REF!","v":{"$error":"#REF!"}}]
[null,{"$f":"#REF!","v":{"$error":"#REF!"}}]
[null,{"$f":"#REF!","v":{"$error":"#REF!"}}]
[null,{"$f":"#REF!","v":{"$error":"#REF!"}}]
[null,{"$f":"#REF!","v":{"$error":"#REF!"}}]
[null,{"$f":"#REF!","v":{"$error":"#REF!"}}]
[null,{"$f":"#REF!","v":{"$error":"#REF!"}}]
[null,{"$f":"#REF!","v":{"$error":"#REF!"}}]
[null,{"$f":"#REF!","v":{"$error":"#REF!"}}]
[null,{"$f":"#REF!","v":{"$error":"#REF!"}}]
[null,{"$f":"#REF!","v":{"$error":"#REF!"}}]
[null,"B. Site acquisition"]
[null,"C. Regulatory and zoning reviews and approvals"]
[null,"D. Construction start"]
[null,"E. Construction completion"]
[null,"F. Initial occupancy"]
[null,"G. Any other relevant development milestones (describe below):"]
{"$rows_empty":7}
["Complete the following table with information about the expected timeline for KHRC resources."]
[]
["Source",null,"Amount",null,"Expected Timeline for Utilizing Resource"]
["MIH",null,{"$f":"SUM(#REF!,#REF!)","v":{"$error":"#REF!"}}]
["KHITC",null,{"$f":"SUM(#REF!,#REF!)","v":{"$error":"#REF!"}}]
["RLF",null,{"$f":"SUM(#REF!)","v":{"$error":"#REF!"}}]
["Prefilled from the Project Information tab. "]
[]
["Sources and amounts of funding requested from KHRC (construction and permanent):"]
[]
["Requested Amount:",null,null,{"$f":"SUM(#REF!)","v":{"$error":"#REF!"}}]
["Proposed Interest Rate: ",null,null,{"$f":"SUM(#REF!)","v":{"$error":"#REF!"}}]
["Proposed Amortization Period:",null,null,{"$f":"SUM(#REF!)","v":{"$error":"#REF!"}}]
["Proposed Term:",null,null,{"$f":"SUM(#REF!)","v":{"$error":"#REF!"}}]
["The above information is prefilled from the Project Information tab. "]
["Additional Information (if applicable):"]
[]
["Describe plan for property management and/or marketing for sale:"]
[]
[]
[]
[]
["Describe how the project will meet Kansas Accessibility Standards identified in K.S.A. 58-1401, et seq., and/or HUD Fair Housing Design Requirements, as applicable:"]
[]
[]
[]
[]
[]
["Please confirm the project proposes to meet the prescriptive energy requirements listed on the Energy Certificate Form. For rehabilitation or conversion of existing structures, project must meet these requirements to the greatest extent possible, including replacement of any components."]
[]
[]
[]
[]
[]
[]
["Describe the project’s energy efficiency profile:"]
[]
[]
[]
[]
["IV: Site Information:"]
[]
["Describe the site location and characteristics:"]
[]
[]
[]
[]
["Is the site located within a Rural Community or Metro Area (Rural Communities are those with a population of "]
["60,000 or less)?"]
[]
["Present use of the site:"]
[]
[]
[]
[]
["Describe any resources near to the site, such as hospitals, schools, public transportation, or grocery stores:"]
[]
[]
[]
[]
["Is the site served by municipal drinking water and wastewater systems?  If not, does the project plan include an extension of municipal water infrastructure to serve the project?"]
[]
[]
[]
[]
[]
["Describe the current status of site ownership and, if site control is not already established, plans to acquire site control:"]
[]
[]
[]
[]
[]
["Describe State permitting and regulatory approvals that your project will need (Act 250, water/wastewater), along with the proposed timeline for those approvals and any anticipated challenges:"]
[]
[]
[]
[]
[]
["Describe the local permitting and regulatory approvals that your project has identified (local zoning, municipal water/wastewater allocations), along with the proposed timetable for those approvals and any anticipated challenges:"]
[]
[]
[]
[]
[]
[]
["Is any portion of the site in a floodplain?"]
[]
["V. Applicant Agreement"]
[]
["The Applicant (City/County/Builder/Developer) hereby makes application to Kansas Housing Resources Corporation for the Revolving Loan Fund Program in the amount of:",{"$nulls":6},{"$f":"SUM(#REF!)","v":{"$error":"#REF!"}}]
[]
[]
[{"$nulls":7},"Prefilled from Project Information tab."]
["The Applicant agrees that KHRC shall not be held responsible or liable for representations made to the undersigned, or its investors, relating to the KHRC RLF.  Therefore, the undersigned Applicant assumes all the risk of damages, losses, costs, and expenses of any kind and of any nature, that KHRC may hereinafter suffer, incur, or pay arising out of the use of the information concerning the RLF on the above referenced development."]
[]
[]
[]
[]
[{"$nulls":12},"Application Tip: Section V - If you are unable to sign electronically in Excel or Adobe, you can print only this agreement page, sign, scan, and include with your Application attachments."]
["Applicant Representative Name",{"$nulls":5},"Applicant Representative Signature"]
[]
[]
["Organization",null,null,null,"Title",null,null,null,"Date"]
[]
["KHRC may request additional material relevant to the project in the course of underwriting. These may include the following materials based on project characteristics and number of units at application or prior to construction closing: Appraisal, market study, and construction cost estimate."]